fUST/lending_fUST_20250820
["ID","MTS","AMOUNT","RATE_DAILY","PERIOD"]
[380240377,1755622278248,-665.71,0.00024383,2]
[380240378,1755622278257,-1099.69,0.00024383,2]
[380240379,1755622278267,-4077.21,0.00024383,2]
[380240380,1755622278277,-530.28,0.00024383,2]
[380240381,1755622278287,-989.73,0.00024383,2]
[380240382,1755622278297,-820.05,0.00024383,2]
[380240383,1755622278305,-665.88,0.00024383,2]
[380240384,1755622278315,-1385.41,0.00024383,2]
[380240385,1755622278324,-685.48,0.00024383,2]
[380240386,1755622278333,-1090.94,0.00024383,2]
[380240387,1755622278343,-899.76,0.00024383,2]
[380240388,1755622278352,-358.55709791,0.00024383,2]
[380240389,1755622278364,-682.11290209,0.00024383,2]
[380240390,1755622278373,-496.36,0.00024383,2]
[380240391,1755622278382,-748.34,0.00024383,2]
[380240392,1755622278391,-615.91,0.00024383,2]
[380240393,1755622278400,-973.55,0.00024383,2]
[380240394,1755622278410,-273.19,0.00024383,2]
[380240395,1755622278419,-480.0,0.00024383,2]
[380240396,1755622278428,-3502.95,0.00024383,2]
[380240397,1755622278437,-2118.85,0.00024383,2]
[380240398,1755622278446,-1200.84,0.00024383,2]
[380240399,1755622278456,-577.5,0.00024383,2]
[380240400,1755622278465,-675.63,0.00024383,2]
[380240401,1755622278475,-535.82,0.00024383,2]
[380240402,1755622278485,-480.0,0.00024383,2]
[380240403,1755622278495,-1462.46,0.00024383,2]
[380240404,1755622278505,-958.15,0.00024383,2]
[380240405,1755622278514,-684.55,0.00024383,2]
[380240406,1755622278523,-480.0,0.00024383,2]
[380240407,1755622278533,-809.37,0.00024383,2]
[380240408,1755622278542,-822.15,0.00024383,2]
[380240409,1755622278552,-1876.86,0.00024383,2]
[380240410,1755622278562,-485.73,0.00024383,2]
[380240411,1755622278572,-594.43,0.00024383,2]
[380240412,1755622278583,-2779.77,0.00024383,2]
[380240413,1755622278593,-611.1,0.00024383,2]
[380240414,1755622278602,-554.35341641,0.00024383,2]
[380240415,1755622278615,-81.54658359,0.00024383,2]
[380240416,1755622278625,-407.16903485,0.00024383,2]
[380240417,1755622278636,-2697.84,0.00024383,2]
[380240418,1755622278646,-2946.82,0.00024383,2]
[380240419,1755622278657,-810.05,0.00024383,2]
[380240420,1755622278668,-1509.61,0.00024383,2]
[380240421,1755622278679,-1082.62,0.00024383,2]
[380240422,1755622278689,-2422.45,0.00024383,2]
[380240423,1755622278699,-516.51,0.00024383,2]
[380240424,1755622278709,-480.0,0.00024383,2]
[380240425,1755622278720,-2620.55,0.00024383,2]
[380240426,1755622278731,-604.32,0.00024383,2]
[380240427,1755622278744,-846.8,0.00024383,2]
[380240428,1755622278754,-663.09,0.00024383,2]
[380240429,1755622278765,-519.86,0.00024383,2]
[380240430,1755622278776,-2167.0,0.00024383,2]
[380240431,1755622278787,-705.07,0.00024383,2]
[380240432,1755622278797,-7328.71,0.00024383,2]
[380240433,1755622278807,-538.37,0.00024383,2]
[380240434,1755622278817,-590.33,0.00024383,2]
[380240435,1755622278827,-876.0,0.00024384,2]
[380240436,1755622278838,-290.09638263,0.00024394,2]
[380240437,1755622278848,-2689.54614876,0.00024394,2]
[380240438,1755622278859,-217.0,0.00024396,2]
[380240439,1755622278870,-1000.0,0.000244,2]
[380240440,1755622278880,-8087.18579842,0.00024439,2]
[380240441,1755622278890,-155.46,0.00024453,7]
[380240442,1755622278901,-1073.48,0.00024453,7]
[380240443,1755622278912,-155.46,0.00024483,7]
[380240444,1755622278922,-217.0,0.00024486,2]
[380240445,1755622278933,-277.3,0.00024489,6]
[380240446,1755622278945,-155.46,0.00024496,7]
[380240447,1755622278955,-217.0,0.00024524,2]
[380240448,1755622278968,-1073.48,0.00024553,7]
[380240449,1755622278978,-679.47,0.00024567,2]
[380240450,1755622278993,-217.0,0.0002457,2]
[380240451,1755622279003,-823.0,0.00024575,2]
[380240452,1755622279013,-155.46,0.00024583,7]
[380240453,1755622279023,-3500.0,0.00024604,2]
[380240454,1755622279033,-306.0,0.0002463,2]
[380240455,1755622279043,-153.0,0.0002463,2]
[380240456,1755622279054,-153.0,0.0002463,2]
[380240457,1755622279065,-580.8939941,0.0002463,2]
[380240458,1755622279075,-580.8939941,0.0002463,2]
[380240459,1755622279085,-293.8943201,0.0002463,2]
[380240460,1755622279096,-160.842982,0.0002463,2]
[380240461,1755622279107,-293.8943201,0.0002463,2]
[380240462,1755622279116,-160.842982,0.0002463,2]
[380240463,1755622279127,-580.8939941,0.0002463,2]
[380240464,1755622279136,-293.8943201,0.0002463,2]
[380240465,1755622279146,-160.842982,0.0002463,2]
[380240466,1755622279156,-580.8939941,0.0002463,2]
[380240467,1755622279165,-160.842982,0.0002463,2]
[380240468,1755622279175,-580.8939941,0.0002463,2]
[380240469,1755622279184,-160.842982,0.0002463,2]
[380240470,1755622279194,-160.663003,0.0002463,2]
[380240471,1755622279204,-217.0,0.00024637,2]
[380240472,1755622279214,-206.0,0.0002464,2]
[380240473,1755622279224,-7529.65393196,0.00024643,2]
[380240474,1755622279237,-1073.48,0.00024653,7]
[380240475,1755622279247,-5000.0,0.00024656,3]
[380240476,1755622279257,-6998.28,0.00024657,2]
[380240477,1755622279266,-966.56,0.00024657,2]
[380240478,1755622279276,-665.71,0.00024657,2]
[380240479,1755622279287,-1099.69,0.00024657,2]
[380240480,1755622279296,-4077.21,0.00024657,2]
[380240481,1755622279307,-530.28,0.00024657,2]
[380240482,1755622279316,-989.73,0.00024657,2]
[380240483,1755622279326,-820.05,0.00024657,2]
[380240484,1755622279336,-665.88,0.00024657,2]
[380240485,1755622279346,-1385.41,0.00024657,2]
[380240486,1755622279355,-685.48,0.00024657,2]
[380240487,1755622279365,-1090.94,0.00024657,2]
[380240488,1755622279374,-1040.67,0.00024657,2]
[380240489,1755622279384,-899.76,0.00024657,2]
[380240490,1755622279393,-496.36,0.00024657,2]
[380240491,1755622279403,-748.34,0.00024657,2]
[380240492,1755622279412,-615.91,0.00024657,2]
[380240493,1755622279422,-973.55,0.00024657,2]
[380240494,1755622279431,-480.0,0.00024657,2]
[380240495,1755622279440,-3502.95,0.00024657,2]
[380240496,1755622279449,-2118.85,0.00024657,2]
[380240497,1755622279459,-1200.84,0.00024657,2]
[380240498,1755622279468,-577.5,0.00024657,2]
[380240499,1755622279478,-675.63,0.00024657,2]
[380240500,1755622279489,-535.82,0.00024657,2]
[380240501,1755622279498,-255.39145357,0.00024657,2]
[380240502,1755622279513,-1462.46,0.00024657,2]
[380240503,1755622279523,-958.15,0.00024657,2]
[380240504,1755622279532,-684.55,0.00024657,2]
[380240505,1755622279543,-480.0,0.00024657,2]
[380240506,1755622279552,-809.37,0.00024657,2]
[380240507,1755622279567,-822.15,0.00024657,2]
[380240508,1755622279577,-1876.86,0.00024657,2]
[380240509,1755622279587,-485.73,0.00024657,2]
[380240510,1755622279597,-594.43,0.00024657,2]
[380240511,1755622279607,-2779.77,0.00024657,2]
[380240512,1755622279617,-611.1,0.00024657,2]
[380240513,1755622279627,-635.9,0.00024657,2]
[380240514,1755622279636,-2697.84,0.00024657,2]
[380240515,1755622279646,-810.05,0.00024657,2]
[380240516,1755622279655,-2946.82,0.00024657,2]
[380240517,1755622279665,-1509.61,0.00024657,2]
[380240518,1755622279675,-1082.62,0.00024657,2]
[380240519,1755622279684,-516.51,0.00024657,2]
[380240520,1755622279694,-2422.45,0.00024657,2]
[380240521,1755622279704,-480.0,0.00024657,2]
[380240522,1755622279713,-2620.55,0.00024657,2]
[380240523,1755622279723,-604.32,0.00024657,2]
[380240524,1755622279733,-846.8,0.00024657,2]
[380240525,1755622279743,-663.09,0.00024657,2]
[380240526,1755622279752,-519.86,0.00024657,2]
[380240527,1755622279761,-2167.0,0.00024657,2]
[380240528,1755622279770,-705.07,0.00024657,2]
[380240529,1755622279779,-7328.71,0.00024657,2]
[380240530,1755622279789,-538.37,0.00024657,2]
[380240531,1755622279799,-590.33,0.00024657,2]
[380240532,1755622279808,-150.0,0.00024658,2]
[380240533,1755622279818,-150.0,0.00024658,2]
[380240534,1755622279827,-280.0,0.00024658,2]
[380240535,1755622279836,-200.0,0.00024658,15]
[380240536,1755622279846,-876.0,0.00024658,2]
[380240537,1755622279855,-500.0,0.00024658,2]
[380240538,1755622279866,-217.0,0.00024661,2]
[380240539,1755622279876,-155.46,0.00024683,7]
[380240540,1755622279886,-2500.0,0.00024691,2]
[380240541,1755622279897,-2231.60244695,0.00024691,2]
[380240542,1755622279906,-3500.0,0.00024691,2]
[380240543,1755622279917,-3500.0,0.00024691,2]
[380240544,1755622279926,-5361.73,0.000247,7]
[380240545,1755622279937,-676.50799018,0.00024702,2]
[380240546,1755622279954,-600.0,0.00024704,2]
[380240547,1755622279964,-3338.26,0.00024746,2]
[380240548,1755622279975,-1073.48,0.00024753,7]
[380240549,1755622279987,-155.46337703,0.00024783,7]
[380240550,1755622279996,-55599.95600826,0.000248,2]
[380240551,1755622280010,-7847.89192011,0.000248,2]
[380240552,1755622280022,-1047.02241692,0.000248,2]
[380240553,1755622280034,-263395.61480671,0.000248,2]
[380240554,1755622280044,-1060.0,0.0002485,2]
[380240555,1755622280054,-8087.18579842,0.00024852,2]
[380240556,1755622280063,-1073.48,0.00024853,7]
[380240557,1755622280072,-1000.0,0.000249,2]
[380240558,1755622280082,-822.35681339,0.000249,2]
[380240559,1755622280092,-822.35681331,0.000249,2]
[380240560,1755622280102,-822.35681331,0.000249,2]
[380240561,1755622280111,-822.35681331,0.000249,2]
[380240562,1755622280121,-822.35681331,0.000249,2]
[380240563,1755622280131,-822.35681331,0.000249,2]
[380240564,1755622280140,-822.35681331,0.000249,2]
[380240565,1755622280150,-822.35681331,0.000249,2]
[380240566,1755622280160,-721837.118773,0.000249,2]
[380240567,1755622280170,-445.37670156,0.00024904,2]
[380240568,1755622280179,-5000.0,0.00024904,2]
[380240569,1755622280189,-5000.0,0.00024904,2]
[380240570,1755622280197,-1400.0,0.00024921,2]
[380240571,1755622280207,-6998.28,0.00024931,2]
[380240572,1755622280216,-966.56,0.00024931,2]
[380240573,1755622280226,-665.71,0.00024931,2]
[380240574,1755622280238,-1099.69,0.00024931,2]
[380240575,1755622280247,-4077.21,0.00024931,2]
[380240576,1755622280256,-530.28,0.00024931,2]
[380240577,1755622280265,-989.73,0.00024931,2]
[380240578,1755622280274,-820.05,0.00024931,2]
[380240579,1755622280284,-665.88,0.00024931,2]
[380240580,1755622280293,-1385.41,0.00024931,2]
[380240581,1755622280303,-685.48,0.00024931,2]
[380240582,1755622280312,-1090.94,0.00024931,2]
[380240583,1755622280321,-1040.67,0.00024931,2]
[380240584,1755622280331,-899.76,0.00024931,2]
[380240585,1755622280340,-496.36,0.00024931,2]
[380240586,1755622280350,-748.34,0.00024931,2]
[380240587,1755622280359,-615.91,0.00024931,2]
[380240588,1755622280368,-973.55,0.00024931,2]
[380240589,1755622280377,-152.36563447,0.00024931,2]
[380240590,1755622280387,-3502.95,0.00024931,2]
[380240591,1755622280396,-2118.85,0.00024931,2]
[380240592,1755622280406,-1200.84,0.00024931,2]
[380240593,1755622280416,-577.5,0.00024931,2]
[380240594,1755622280425,-675.63,0.00024931,2]
[380240595,1755622280434,-535.82,0.00024931,2]
[380240596,1755622280443,-1462.46,0.00024931,2]
[380240597,1755622280452,-958.15,0.00024931,2]
[380240598,1755622280461,-684.55,0.00024931,2]
[380240599,1755622280470,-369.6,0.00024931,2]
[380240600,1755622280480,-809.37,0.00024931,2]
[380240601,1755622280493,-822.15,0.00024931,2]
[380240602,1755622280502,-1876.86,0.00024931,2]
[380240603,1755622280511,-485.73,0.00024931,2]
[380240604,1755622280521,-594.43,0.00024931,2]
[380240605,1755622280530,-2779.77,0.00024931,2]
[380240606,1755622280539,-611.1,0.00024931,2]
[380240607,1755622280548,-635.9,0.00024931,2]
[380240608,1755622280558,-2697.84,0.00024931,2]
[380240609,1755622280567,-810.05,0.00024931,2]
[380240610,1755622280576,-2946.82,0.00024931,2]
[380240611,1755622280585,-1509.61,0.00024931,2]
[380240612,1755622280595,-1082.62,0.00024931,2]
[380240613,1755622280604,-516.51,0.00024931,2]
[380240614,1755622280613,-2422.45,0.00024931,2]
[380240615,1755622280622,-519.42532935,0.00024931,2]
[380240616,1755622280631,-2620.55,0.00024931,2]
[380240617,1755622280640,-604.32,0.00024931,2]
[380240618,1755622280650,-846.8,0.00024931,2]
[380240619,1755622280659,-663.09,0.00024931,2]
[380240620,1755622280669,-519.86,0.00024931,2]
[380240621,1755622280678,-2167.0,0.00024931,2]
[380240622,1755622280687,-705.07,0.00024931,2]
[380240623,1755622280790,-7328.71,0.00024931,2]
[380240624,1755622280799,-538.37,0.00024931,2]
[380240625,1755622280809,-590.33,0.00024931,2]
[380240626,1755622280819,-876.0,0.00024932,2]
[380240627,1755622280829,-500.0,0.00024932,2]
[380240628,1755622280839,-1073.48,0.00024953,7]
[380240629,1755622280849,-155.238108,0.00024994,2]
[380240630,1755622280858,-174724.62397257,0.00025,2]
[380240631,1755622281192,-480.0,0.00019178,2]
[380240632,1755622281201,-480.0,0.00019178,2]
[380240633,1755622281211,-290.00312792,0.00019178,2]
[380240634,1755622281221,-480.0,0.00019452,2]
[380240635,1755622281230,-480.0,0.00019452,2]
[380240636,1755622281242,-480.0,0.00019726,2]
[380240637,1755622281251,-480.0,0.0002,2]
[380240638,1755622281260,-480.0,0.00020273,2]
[380240639,1755622281273,-3159.53,0.00020821,2]
[380240640,1755622281291,-2483.85105657,0.00021095,2]
[380240641,1755622281370,-587.89692704,0.00020547,2]
[380240642,1755622281380,-675.67894343,0.00021095,2]
[380240643,1755622281390,-283.75061657,0.00021369,2]
[380240644,1755622281697,-266.25000003,0.00019178,2]
[380240645,1755622281709,-213.74999997,0.00019178,2]
[380240646,1755622281718,-480.0,0.00019178,2]
[380240647,1755622281727,-480.0,0.00019178,2]
[380240648,1755622281738,-480.0,0.00019178,2]
[380240649,1755622281747,-225.0787671,0.00019452,2]
[380240650,1755622281757,-480.0,0.00019452,2]
[380240651,1755622281767,-480.0,0.00019452,2]
[380240652,1755622281776,-151.0,0.00019726,2]
[380240653,1755622281785,-480.0,0.00019726,2]
[380240654,1755622281795,-2875.77938343,0.00021369,2]
[380240655,1755622281805,-500.0,0.00021403,2]
[380240656,1755622281815,-302.56084173,0.00021643,2]
[380240657,1755622281827,-2856.96915827,0.00021643,2]
[380240658,1755622281836,-480.0,0.00021917,2]
[380240659,1755622281846,-3159.53,0.00021917,2]
[380240660,1755622281855,-153.0,0.00021918,2]
[380240661,1755622281865,-153.0,0.00021918,2]
[380240662,1755622281875,-153.0,0.00021918,2]
[380240663,1755622281884,-153.0,0.00021918,2]
[380240664,1755622281893,-153.0,0.00021918,2]
[380240665,1755622281903,-153.0,0.00021918,2]
[380240666,1755622281912,-153.0,0.00021918,2]
[380240667,1755622281922,-153.0,0.00021918,2]
[380240668,1755622281931,-153.0,0.00021918,2]
[380240669,1755622281942,-153.0,0.00021918,2]
[380240670,1755622281952,-153.0,0.00021918,2]
[380240671,1755622281962,-153.0,0.00021918,2]
[380240672,1755622281971,-153.0,0.00021918,2]
[380240673,1755622281981,-1000.0,0.00021951,2]
[380240674,1755622281994,-480.0,0.00022191,2]
[380240675,1755622282004,-1374.50084173,0.00022191,2]
[380240676,1755622282163,-480.0,0.0002,2]
[380240677,1755622282172,-135.75964492,0.00020273,2]
[380240678,1755622282183,-344.24035508,0.00020273,2]
[380240679,1755622282193,-480.0,0.00020547,2]
[380240680,1755622282202,-480.0,0.00020821,2]
[380240681,1755622282212,-480.0,0.00021095,2]
[380240682,1755622282221,-480.0,0.00021369,2]
[380240683,1755622282230,-480.0,0.00021643,2]
[380240684,1755622282241,-232.14801367,0.00021917,2]
[380240685,1755622282250,-153.0,0.00021918,2]
[380240686,1755622282259,-153.0,0.00021918,2]
[380240687,1755622282268,-153.0,0.00021918,2]
[380240688,1755622282278,-153.0,0.00021918,2]
[380240689,1755622282287,-153.0,0.00021918,2]
[380240690,1755622282296,-153.0,0.00021918,2]
[380240691,1755622282305,-153.0,0.00021918,2]
[380240692,1755622282315,-153.0,0.00021918,2]
[380240693,1755622282324,-1785.02915827,0.00022191,2]
[380240694,1755622282333,-480.0,0.00022465,2]
[380240695,1755622282343,-3159.53,0.00022465,2]
[380240696,1755622282353,-1500.0,0.00022499,2]
[380240697,1755622282363,-480.0,0.00022739,2]
[380240698,1755622282372,-3159.53,0.00022739,2]
[380240699,1755622282382,-250.86685253,0.00023013,2]
[380240700,1755622282391,-3159.53,0.00023013,2]
[380240701,1755622282401,-2000.0,0.00023047,2]
[380240702,1755622282410,-3159.53,0.00023287,2]
[380240703,1755622282421,-3159.53,0.00023561,2]
[380240704,1755622282430,-1505.64626977,0.00023595,2]
[380240705,1755622282439,-2904.50507267,0.00023713,2]
[380240706,1755622282459,-13188.41587044,0.00023713,2]
[380240707,1755622282469,-16092.92094311,0.00023759,2]
[380240708,1755622282479,-3159.53,0.00023835,2]
[380240709,1755622282489,-12685.85563623,0.000245,7]
[380240710,1755622282500,-246252.2197811,0.00025,2]
[380240711,1755622282510,-14443.47,0.00025,7]
[380240712,1755622282519,-9220.29828814,0.00025,2]
[380240713,1755622282529,-1067.6593839,0.00025,2]
[380240714,1755622282539,-2629.14798236,0.00025,2]
[380240715,1755622282549,-28606.6419746,0.00025,2]
[380240716,1755622282558,-208.46466899,0.00025,2]
[380240717,1755622282568,-359.87577821,0.00025,2]
[380240718,1755622282578,-553.69109485,0.00025,2]
[380240719,1755622282587,-500.0,0.00025,2]
[380240720,1755622282597,-600.0,0.00025,2]
[380240721,1755622282607,-543.61832408,0.00025033,2]
[380240722,1755622282617,-1073.48,0.00025053,7]
[380240723,1755622282626,-972.0,0.00025058,2]
[380240724,1755622282636,-637.0,0.00025058,2]
[380240725,1755622282646,-2153.0,0.00025058,2]
[380240726,1755622282656,-150.0,0.00025058,2]
[380240727,1755622282666,-150.0,0.00025058,2]
[380240728,1755622282675,-206.0,0.0002514,2]
[380240729,1755622282684,-277.3,0.00025141,6]
[380240730,1755622282693,-1073.48,0.00025153,7]
[380240731,1755622282703,-6998.28,0.00025205,2]
[380240732,1755622282712,-966.56,0.00025205,2]
[380240733,1755622282722,-665.71,0.00025205,2]
[380240734,1755622282730,-1099.69,0.00025205,2]
[380240735,1755622282741,-4077.21,0.00025205,2]
[380240736,1755622282750,-530.28,0.00025205,2]
[380240737,1755622282761,-989.73,0.00025205,2]
[380240738,1755622282770,-820.05,0.00025205,2]
[380240739,1755622282779,-665.88,0.00025205,2]
[380240740,1755622282789,-1385.41,0.00025205,2]
[380240741,1755622282800,-685.48,0.00025205,2]
[380240742,1755622282810,-1090.94,0.00025205,2]
[380240743,1755622282820,-1040.67,0.00025205,2]
[380240744,1755622282829,-899.76,0.00025205,2]
[380240745,1755622282838,-496.36,0.00025205,2]
[380240746,1755622282849,-748.34,0.00025205,2]
[380240747,1755622282858,-615.91,0.00025205,2]
[380240748,1755622282868,-3502.95,0.00025205,2]
[380240749,1755622282878,-2118.85,0.00025205,2]
[380240750,1755622282887,-1200.84,0.00025205,2]
[380240751,1755622282897,-577.5,0.00025205,2]
[380240752,1755622282906,-535.82,0.00025205,2]
[380240753,1755622282915,-1462.46,0.00025205,2]
[380240754,1755622282925,-958.15,0.00025205,2]
[380240755,1755622282935,-684.55,0.00025205,2]
[380240756,1755622282946,-809.37,0.00025205,2]
[380240757,1755622282961,-822.15,0.00025205,2]
[380240758,1755622282971,-1876.86,0.00025205,2]
[380240759,1755622282981,-485.73,0.00025205,2]
[380240760,1755622282995,-594.43,0.00025205,2]
[380240761,1755622283005,-2779.77,0.00025205,2]
[380240762,1755622283015,-611.1,0.00025205,2]
[380240763,1755622283026,-635.9,0.00025205,2]
[380240764,1755622283037,-2697.84,0.00025205,2]
[380240765,1755622283047,-810.05,0.00025205,2]
[380240766,1755622283056,-2946.82,0.00025205,2]
[380240767,1755622283067,-1509.61,0.00025205,2]
[380240768,1755622283076,-1082.62,0.00025205,2]
[380240769,1755622283086,-516.51,0.00025205,2]
[380240770,1755622283095,-2422.45,0.00025205,2]
[380240771,1755622283105,-2620.55,0.00025205,2]
[380240772,1755622283114,-554.26878099,0.00025205,2]
[380240773,1755622283127,-50.05121901,0.00025205,2]
[380240774,1755622283137,-846.8,0.00025205,2]
[380240775,1755622283147,-663.09,0.00025205,2]
[380240776,1755622283156,-519.86,0.00025205,2]
[380240777,1755622283165,-2167.0,0.00025205,2]
[380240778,1755622283175,-705.07,0.00025205,2]
[380240779,1755622283185,-7328.71,0.00025205,2]
[380240780,1755622283195,-538.37,0.00025205,2]
[380240781,1755622283205,-590.33,0.00025205,2]
[380240782,1755622283215,-350.1107588,0.00025205,2]
[380240783,1755622283225,-250.0,0.00025205,2]
[380240784,1755622283234,-876.0,0.00025206,2]
[380240785,1755622283247,-500.0,0.00025206,2]
[380240786,1755622283257,-1121.28831716,0.00025239,2]
[380240787,1755622283267,-4000.0,0.00025239,2]
[380240788,1755622283276,-493.59344063,0.00025252,2]
[380240789,1755622283286,-1073.48,0.00025253,7]
[380240790,1755622283296,-8087.18579842,0.00025265,3]
[380240791,1755622283306,-822.35681331,0.00025327,2]
[380240792,1755622283316,-1073.48,0.00025353,7]
[380240793,1755622283326,-1160.0,0.00025398,2]
[380240794,1755622283335,-824.22365267,0.000254,7]
[380240795,1755622283346,-186.26634733,0.000254,7]
[380240796,1755622283355,-358.42606828,0.000254,2]
[380240797,1755622335648,346.784435,0.00013699,2]
[380240800,1755622391420,110818.2268101,0.00018103,2]
[380240801,1755622600688,300.0,0.00028,120]
[380240802,1755622628769,300.0,0.00028,120]
[380240803,1755622630897,1106.52832239,0.000186,2]
[380240804,1755622748210,1000.0,0.00017876,2]
[380240805,1755622838162,477.986,0.00027059,60]
[380240809,1755622925295,177.58912712,0.00018775,2]
[380240811,1755623136147,-634.18221027,0.00018875,2]
[380240812,1755623156552,196.0272652,0.00018036,2]
[380240813,1755623238082,-237.60295685,0.00018875,2]
[380240814,1755623341990,2.3336058,0.00013699,2]
[380240815,1755623342013,350.0696402,0.00013699,2]
[380240854,1755623435452,-300.0,0.00018875,2]
[380240855,1755623435464,-300.0,0.00018875,2]
[380240856,1755623435474,-1200.0,0.00018875,2]
[380240857,1755623435484,-500.0,0.00018876,2]
[380240858,1755623435494,-3328.59934912,0.00018876,2]
[380240859,1755623435505,-664.44,0.00018876,2]
[380240860,1755623435516,-810.29970644,0.00018876,2]
[380240861,1755623435527,-45196.66094444,0.00018876,2]
[380240862,1755623435537,-294.61731419,0.00018876,2]
[380240863,1755623435547,-500.0,0.00018876,2]
[380240864,1755623435557,-500.0,0.00018876,2]
[380240865,1755623435566,-246.3008172,0.00018876,2]
[380240866,1755623435575,-600.86335969,0.00018876,2]
[380240867,1755623435586,-372.0,0.00018876,2]
[380240868,1755623435595,-500.0,0.00018876,2]
[380240869,1755623435605,-500.0,0.00018876,2]
[380240870,1755623435614,-500.0,0.00018876,2]
[380240872,1755623435624,-500.0,0.00018876,2]
[380240874,1755623435634,-202.5786902,0.00018876,2]
[380240875,1755623435644,-500.0,0.00018876,2]
[380240876,1755623435653,-500.0,0.00018876,2]
[380240877,1755623435662,-500.0,0.00018876,2]
[380240878,1755623435672,-500.0,0.00018876,2]
[380240879,1755623435681,-500.0,0.00018876,2]
[380240880,1755623435691,-500.0,0.00018876,2]
[380240881,1755623435700,-500.0,0.00018876,2]
[380240882,1755623435710,-500.0,0.00018876,2]
[380240883,1755623435721,-373.89799678,0.00018876,2]
[380240884,1755623435731,-578.17455944,0.00018876,2]
[380240885,1755623435740,-494.61731419,0.00018876,2]
[380240886,1755623435750,-500.0,0.00018876,2]
[380240887,1755623435759,-300.0,0.00018876,2]
[380240888,1755623435769,-500.0,0.00018876,2]
[380240889,1755623435778,-500.0,0.00018876,2]
[380240890,1755623435788,-500.0,0.00018876,2]
[380240891,1755623435798,-500.0,0.00018876,2]
[380240892,1755623435807,-500.0,0.00018876,2]
[380240893,1755623435817,-447.47435998,0.00018876,2]
[380240894,1755623435826,-450.57787135,0.00018876,2]
[380240895,1755623435836,-337.3832948,0.00018876,2]
[380240896,1755623435847,-162.6167052,0.00018876,2]
[380240897,1755623435857,-396.76964763,0.00018876,2]
[380240898,1755623435866,-500.0,0.00018876,2]
[380240899,1755623435875,-468.50360838,0.00018876,2]
[380240900,1755623435884,-318.31621126,0.00018876,2]
[380240901,1755623435894,-500.0,0.00018876,2]
[380240902,1755623435903,-500.0,0.00018876,2]
[380240903,1755623435918,-500.0,0.00018876,2]
[380240904,1755623435927,-500.0,0.00018876,2]
[380240905,1755623435936,-500.0,0.00018876,2]
[380240907,1755623435948,-500.0,0.00018876,2]
[380240909,1755623435958,-500.0,0.00018876,2]
[380240911,1755623435971,-500.0,0.00018876,2]
[380240913,1755623435980,-500.0,0.00018876,2]
[380240915,1755623435989,-588.82866037,0.00018876,2]
[380240917,1755623435998,-250.0,0.00018876,2]
[380240919,1755623436008,-544.463028,0.00018876,2]
[380240920,1755623436017,-37530.50213916,0.00018877,2]
[380240923,1755623436028,-250.71300834,0.00018877,2]
[380240925,1755623436040,-1880.000005,0.00018877,2]
[380240985,1755623437905,-40963.73042744,0.00018877,2]
[380240987,1755623437916,-11526.00527922,0.00018877,2]
[380240988,1755623437928,-247171.5828823,0.00018877,2]
[380240989,1755623437938,-302.51602579,0.000189,2]
[380240990,1755623437947,-389.68938911,0.00019078,2]
[380240991,1755623437957,-302.51602579,0.00019089,2]
[380240992,1755623437967,-340.0,0.00019099,2]